bitfinex-derivatives/quotes_ETHF0:USTF0_20260208
["timestamp","ask_amount","ask_price","bid_price","bid_amount"]
[1770584576554,0.55030678,2106.2,2105.6,0.59205447]
[1770584576856,2.8381358,2106.3,2105.6,0.59205447]
[1770584577363,3.38844258,2106.3,2105.6,0.59205447]
[1770584577966,0.55030678,2106.3,2105.6,0.59205447]
[1770584578168,3.38844258,2106.7,2105.8,0.58603995]
[1770584578564,0.55030678,2106.6,2105.8,0.58603995]
[1770584582165,0.55030678,2106.7,2105.8,0.58603995]
[1770584583563,0.55030678,2106.6,2105.8,0.58603995]
[1770584584460,2.8381358,2106.7,2106.0,0.58603995]
[1770584584665,0.55030678,2106.8,2106.0,0.58603995]
[1770584585764,0.55030678,2106.7,2105.9,0.58603995]
[1770584588681,0.55030678,2106.7,2106.0,0.58603995]
[1770584588882,0.55030678,2106.7,2106.1,0.58603995]
[1770584590776,0.55030678,2106.6,2106.1,0.58603995]
[1770584593679,2.8381358,2106.8,2106.2,0.58603995]
[1770584593877,3.39252909,2107.0,2106.3,0.58603995]
[1770584594072,0.55030678,2106.9,2106.3,0.58603995]
[1770584595184,0.55030678,2106.9,2106.2,0.23755]
[1770584595185,0.58683714,2106.8,2106.2,0.23755]
[1770584595975,0.56776123,2106.7,2106.2,0.7901523]
[1770584597185,0.56776123,2106.6,2106.2,0.5526023]
[1770584597680,0.56776123,2106.5,2105.9,0.5526023]
[1770584598888,2.8381358,2106.6,2105.9,0.5526023]
[1770584599088,3.40589703,2106.6,2105.9,0.5526023]
[1770584599491,0.56776123,2106.5,2105.9,0.5526023]
[1770584599690,2.8381358,2106.6,2105.9,0.5526023]
[1770584599989,3.40589703,2106.6,2105.9,0.5526023]
[1770584601194,0.56776123,2106.5,2105.9,0.5526023]
[1770584602294,0.56776123,2106.7,2106.1,0.5526023]
[1770584604395,2.8381358,2106.8,2106.1,0.5526023]
[1770584604591,3.40589703,2106.9,2106.4,0.5526023]
[1770584604796,0.57184774,2107.0,2106.4,0.5526023]
[1770584606789,0.57184774,2107.0,2106.3,0.23753]
[1770584607494,0.57184774,2107.0,2106.3,0.7901323]
[1770584607895,0.57184774,2107.0,2106.4,0.5526023]
[1770584614701,0.56776123,2106.9,2106.4,0.5526023]
[1770584616401,0.56776123,2107.0,2106.5,0.5526023]
[1770584617399,0.57278741,2107.0,2106.5,0.5526023]
[1770584619203,0.0014508,2107.0,2106.5,0.5526023]
[1770584620202,0.56921203,2107.0,2106.5,0.5526023]
[1770584621004,0.56776123,2106.9,2106.4,0.23753]
[1770584621805,0.56776123,2106.9,2106.0,4.27684847]
[1770584621806,0.56776123,2106.9,2106.1,0.5526023]
[1770584622006,1.80424781,2106.8,2106.1,0.5526023]
[1770584622203,0.56776123,2106.7,2106.1,0.5526023]
[1770584622607,2.8381358,2106.9,2106.1,0.5526023]
[1770584622608,3.40589703,2106.9,2106.1,0.5526023]
[1770584622809,0.56776123,2106.8,2106.2,0.5526023]
[1770584623010,0.56776123,2106.8,2106.1,0.7901623]
[1770584623712,0.56776123,2106.5,2105.9,0.5526023]
[1770584626709,0.58750249,2106.3,2105.6,0.81352091]
[1770584626908,0.58750249,2106.3,2105.7,0.56988639]
[1770584634422,0.125,2106.0,2105.7,0.56988639]
[1770584635925,0.58750249,2106.4,2105.7,0.56988639]
[1770584637022,0.58750249,2106.4,2105.8,0.56988639]
[1770584637232,3.42563829,2106.9,2106.3,0.56988639]
[1770584637419,0.58750249,2106.9,2106.3,0.56988639]
[1770584639926,0.0014508,2107.0,2106.4,0.56988639]
[1770584641527,3.42563829,2107.3,2106.8,0.56988639]
[1770584641919,2.8381358,2107.3,2106.8,0.56988639]
[1770584642119,3.42563829,2107.4,2106.8,0.56988639]
[1770584642524,0.59099293,2107.4,2106.8,0.56988639]
[1770584643229,3.42563829,2107.6,2106.9,1.80424781]
[1770584643424,0.58750249,2107.6,2107.0,0.56988639]
[1770584644126,0.58750249,2107.7,2107.2,0.23744]
[1770584644325,0.59267863,2107.7,2107.3,0.56988639]
[1770584644627,0.58750249,2107.9,2107.3,0.56988639]
[1770584645631,0.59136429,2107.9,2107.3,0.56988639]
[1770584646931,0.58750249,2108.1,2107.4,0.56988639]
[1770584647118,2.8381358,2108.4,2107.4,0.56988639]
[1770584647324,0.58750249,2108.4,2107.7,0.56988639]
[1770584647732,0.59089225,2108.4,2107.7,0.56988639]
[1770584648932,0.59089225,2108.4,2107.8,0.56988639]
[1770584649433,0.58750249,2108.6,2107.9,0.56988639]
[1770584650036,0.58750249,2108.8,2108.0,0.56988639]
[1770584650331,0.5922832,2108.8,2108.0,0.56988639]
[1770584650826,0.58750249,2108.6,2108.0,0.56988639]
[1770584652635,0.58750249,2108.7,2108.0,0.56988639]
[1770584655030,0.57818257,2108.8,2108.0,0.56988639]
[1770584655734,0.57818257,2108.8,2108.1,0.56836405]
[1770584655934,0.57818257,2108.8,2108.2,0.56836405]
[1770584659340,0.57818257,2108.8,2108.1,0.23733]
[1770584659536,0.57818257,2108.8,2107.8,0.43295324]
[1770584659839,0.57818257,2108.8,2107.7,0.56836405]
[1770584660539,0.57818257,2108.8,2107.5,0.80576405]
[1770584660735,0.58403296,2108.7,2107.5,0.2374]
[1770584661037,0.58403296,2108.5,2107.3,0.43445404]
[1770584661227,0.58403296,2108.5,2107.3,0.56836405]
[1770584661739,0.58403296,2108.5,2107.2,0.00479251]
[1770584662339,0.58403296,2108.4,2107.2,0.00479251]
[1770584662637,0.58403296,2108.4,2107.2,0.57315656]
[1770584665632,3.42216876,2108.3,2107.2,0.57315656]
[1770584665839,0.58403296,2108.2,2107.2,0.57315656]
[1770584666238,0.58403296,2108.1,2107.2,0.57315656]
[1770584667640,0.58403296,2108.1,2107.4,0.56836405]
[1770584668232,0.58403296,2108.1,2106.7,0.23749]
[1770584668233,2.82440901,2108.0,2106.7,0.23749]
[1770584668542,2.82440901,2108.0,2106.8,0.56836405]
[1770584668543,0.58403296,2107.8,2106.8,0.56836405]
[1770584669442,0.58403296,2107.7,2106.8,0.57357728]
[1770584669940,0.58403296,2108.0,2107.1,0.56836405]
[1770584671847,0.58403296,2107.9,2107.1,0.56836405]
[1770584676647,0.58403296,2107.9,2106.8,0.00521323]
[1770584676849,0.5593926,2106.8,2105.5,0.40408346]
[1770584677053,0.5593926,2106.5,2105.6,0.56999262]
[1770584677246,0.5593926,2106.5,2105.4,0.56999262]
[1770584677447,0.5593926,2106.4,2105.3,0.80764262]
[1770584677650,0.5593926,2106.3,2105.3,0.80764262]
[1770584677848,0.56299799,2106.3,2105.3,0.8130691]
[1770584678049,0.56299799,2106.3,2105.3,0.00542648]
[1770584678348,0.5593926,2106.1,2104.9,0.56999262]
[1770584678843,0.5593926,2106.0,2104.9,0.56999262]
[1770584679046,0.5593926,2106.0,2104.8,0.56999262]
[1770584679244,3.39029239,2106.0,2104.8,0.00577362]
[1770584679453,0.5593926,2105.9,2104.8,0.00577362]
[1770584679848,3.39029239,2105.8,2104.8,0.00577362]
[1770584680049,0.5593926,2105.7,2104.8,0.00577362]
[1770584683255,0.5593926,2105.9,2105.0,0.56999262]
[1770584683452,0.5593926,2106.1,2105.1,0.56999262]
[1770584683657,0.5593926,2106.1,2105.2,0.56999262]
[1770584685662,0.5527934,2106.3,2105.4,0.58473287]
[1770584690065,0.54918801,2106.5,2105.6,0.58473287]
[1770584690964,0.55444699,2106.5,2105.6,0.58473287]
[1770584692666,0.54918801,2106.7,2105.8,0.58473287]
[1770584693667,0.55382563,2106.7,2105.8,0.58473287]
[1770584695670,0.55382563,2106.7,2105.9,0.58473287]
[1770584700767,0.54918801,2106.5,2105.3,0.58473287]
[1770584701572,0.54918801,2106.5,2105.2,0.82239287]
[1770584701573,0.54918801,2106.4,2105.2,0.82239287]
[1770584701863,0.54918801,2106.4,2105.3,0.58473287]
[1770584702762,0.54918801,2106.4,2105.2,0.82239287]
[1770584702966,0.54918801,2106.4,2105.3,0.58473287]
[1770584703269,0.54918801,2106.3,2105.3,0.58473287]
[1770584704369,0.54918801,2106.3,2105.4,0.58473287]
[1770584704673,0.54918801,2106.3,2105.5,0.58473287]
[1770584706171,0.54918801,2106.2,2105.5,0.58473287]
[1770584707162,0.54918801,2106.2,2105.4,0.23764]
[1770584707368,0.54918801,2106.1,2105.4,0.82237287]
[1770584708068,0.54918801,2106.1,2105.5,0.58473287]
[1770584708274,0.54918801,2106.1,2105.4,0.23764]
[1770584708471,0.54918801,2106.1,2105.3,0.58473287]
[1770584709276,0.54918801,2106.1,2105.4,0.58473287]
[1770584709770,0.54918801,2106.3,2105.4,0.58473287]
[1770584710278,0.54918801,2106.3,2105.5,0.58473287]
[1770584710877,3.35039257,2106.3,2105.5,0.58473287]
[1770584711676,0.54918801,2106.2,2105.5,0.58473287]
[1770584712076,3.35039257,2106.2,2105.5,0.58473287]
[1770584713277,2.80120456,2106.1,2105.5,0.58473287]
[1770584714775,2.80120456,2106.2,2105.6,0.58473287]
[1770584714980,2.80120456,2106.3,2105.6,0.58473287]
[1770584715372,2.80120456,2106.3,2105.7,0.5716548]
[1770584715674,3.35039257,2106.4,2105.7,0.5716548]
[1770584715875,2.80120456,2106.4,2105.8,0.23759]
[1770584716075,2.80120456,2106.4,2105.9,0.53715518]
[1770584716479,3.35885312,2106.4,2105.9,0.53715518]
[1770584716679,0.55764856,2106.4,2105.9,0.53715518]
[1770584719481,2.80120456,2106.5,2105.9,0.53715518]
[1770584719482,0.55764856,2106.5,2105.9,0.53715518]
[1770584722684,3.35885312,2106.6,2106.0,0.23757]
[1770584722891,0.56228618,2106.7,2106.1,0.53715518]
[1770584729205,0.00463762,2106.7,2106.1,0.53715518]
[1770584730300,0.00463762,2106.7,2106.1,0.77471518]
[1770584730500,0.00463762,2106.7,2106.2,0.53715518]
[1770584730701,0.56228618,2106.7,2106.2,0.53715518]
[1770584733508,0.00463762,2106.7,2106.2,0.53715518]
[1770584733707,0.55764856,2106.9,2106.2,0.53715518]
[1770584734802,0.56194178,2106.9,2106.2,0.53715518]
[1770584737109,0.00429322,2106.9,2106.2,0.53715518]
[1770584737322,0.00429322,2106.9,2106.4,0.53715518]
[1770584737606,0.56194178,2106.9,2106.4,0.54083117]
[1770584738414,0.56194178,2106.9,2106.4,0.00367599]
[1770584738714,0.56194178,2106.9,2106.4,0.54083117]
[1770584740315,0.56194178,2106.9,2106.2,0.53715518]
[1770584741414,0.56194178,2106.9,2106.2,0.54073746]
[1770584741717,0.56194178,2106.9,2106.3,0.23753]
[1770584742310,0.55764856,2106.8,2106.3,0.77468518]
[1770584743809,0.55764856,2106.8,2106.3,0.23753]
[1770584744009,0.55764856,2106.5,2105.7,0.77475518]
[1770584744312,0.55764856,2106.4,2105.8,0.53715518]
[1770584744505,0.55764856,2106.4,2105.7,0.77475518]
[1770584744708,0.55764856,2106.3,2105.7,0.77475518]
[1770584744905,0.55764856,2106.3,2105.7,0.77930793]
[1770584745311,0.55764856,2106.3,2105.8,0.56265941]
[1770584745507,0.55764856,2106.3,2105.8,0.00358228]
[1770584745714,0.55987689,2106.2,2105.8,0.56624169]
[1770584746706,0.55987689,2106.4,2105.8,0.56624169]
[1770584746913,0.55987689,2106.3,2105.8,0.56624169]
[1770584747112,0.55987689,2106.3,2105.8,0.00358228]
[1770584747416,0.55987689,2106.3,2105.7,0.24215275]
[1770584747617,0.55987689,2106.3,2105.8,0.00358228]
[1770584750419,0.55987689,2106.3,2105.8,0.56624169]
[1770584753620,0.55987689,2106.3,2105.8,0.00358228]
[1770584753818,0.55987689,2106.0,2105.4,0.56265941]
[1770584754123,0.55987689,2106.0,2105.3,0.56265941]
[1770584754822,0.55987689,2106.0,2105.3,0.56794881]
[1770584758020,0.55987689,2106.0,2105.4,0.56265941]
[1770584760724,0.55987689,2106.1,2105.4,0.56265941]
[1770584765532,0.56417011,2106.9,2106.2,0.56265941]
[1770584766635,0.56417011,2106.9,2106.3,0.56265941]
[1770584767735,0.00429322,2106.9,2106.3,0.56265941]
[1770584769431,0.55987689,2107.2,2106.4,0.56265941]
[1770584770538,0.56409538,2107.2,2106.4,0.56265941]
[1770584770738,0.47383392,2107.5,2106.6,0.56265941]
[1770584771831,0.47776077,2107.5,2106.6,0.56265941]
[1770584772034,0.00392685,2107.5,2106.6,0.23751]
[1770584772238,0.47776077,2107.5,2106.7,0.56265941]
[1770584772833,0.47776077,2107.5,2106.8,0.56265941]
[1770584773037,0.47776077,2107.5,2106.8,0.56693003]
[1770584773231,0.00392685,2107.5,2106.8,0.56693003]
[1770584773634,0.00392685,2107.5,2107.0,0.56265941]
[1770584778042,0.47745038,2108.0,2107.1,0.23745]
[1770584778247,0.48137723,2108.1,2107.3,0.54788234]
[1770584779149,0.48732851,2108.1,2107.3,0.54788234]
[1770584779345,0.00595128,2108.1,2107.4,0.54788234]
[1770584779540,0.00595128,2108.1,2107.5,0.54788234]
[1770584781451,0.48067845,2108.0,2106.9,0.54788234]
[1770584782050,0.48067845,2108.0,2106.8,0.24174062]
[1770584782445,0.48067845,2108.0,2106.8,0.78962296]
[1770584782646,5.23267845,2108.0,2106.8,0.78962296]
[1770584782850,0.47953833,2107.9,2106.8,0.78962296]
[1770584785945,0.47953833,2107.9,2106.9,0.54788234]
[1770584787244,0.48533295,2107.8,2106.9,0.54788234]
[1770584789849,0.48533295,2107.8,2107.0,0.54788234]
[1770584794354,42.94882994,2107.8,2107.0,0.54788234]
[1770584794649,0.50694974,2107.6,2107.0,0.54788234]
[1770584795350,0.50176408,2107.5,2107.0,0.54788234]
[1770584795555,42.96526107,2107.7,2107.0,0.54788234]
[1770584795755,0.50176408,2107.6,2107.0,0.54788234]
[1770584796359,42.46349699,2107.8,2107.2,0.54788234]
[1770584796559,5.67995613,2107.9,2107.2,0.54788234]
[1770584796560,0.50176408,2107.9,2107.2,0.54788234]
[1770584796861,0.50176408,2107.8,2107.3,0.54788234]
[1770584797558,42.9628846,2107.9,2107.3,0.54788234]
[1770584798159,0.49938761,2107.8,2107.2,0.23744]
[1770584798460,42.46349699,2107.9,2107.3,0.54788234]
[1770584798657,0.49938761,2107.8,2107.3,0.54788234]
[1770584799559,0.50156305,2107.8,2107.3,0.54788234]
[1770584799760,42.46349699,2107.9,2107.3,0.54788234]
[1770584800658,42.96506004,2107.9,2107.3,0.54788234]
[1770584800858,0.50505523,2107.8,2107.3,0.54788234]
[1770584802556,42.96855222,2107.9,2107.3,0.54788234]
[1770584803363,0.50291032,2107.8,2107.3,0.54788234]
[1770584803760,42.96640731,2107.9,2107.3,0.54788234]
[1770584803961,0.50291032,2107.8,2107.3,0.54788234]
[1770584804159,42.46349699,2107.9,2107.3,0.54788234]
[1770584804964,42.96483939,2107.9,2107.3,0.54788234]
[1770584805159,0.00595128,2108.1,2107.6,0.58265468]
[1770584805360,0.54325869,2108.1,2107.5,0.2374]
[1770584805566,0.54325869,2108.1,2107.4,0.58265468]
[1770584811779,0.54325869,2108.1,2107.3,0.23742]
[1770584811970,0.53730741,2108.0,2107.2,0.58265468]
[1770584818775,0.53730741,2107.9,2107.1,0.58265468]
[1770584818984,0.53730741,2107.7,2107.1,0.58265468]
[1770584820583,0.53730741,2107.7,2107.0,0.23746]
[1770584820584,0.53730741,2107.7,2107.0,0.82011468]
[1770584820784,0.53730741,2107.7,2107.1,0.58265468]
[1770584821385,0.53730741,2107.4,2106.8,0.00427062]
[1770584821584,0.53730741,2107.4,2106.8,0.5869253]
[1770584822479,0.53730741,2107.4,2106.8,0.00427062]
[1770584822686,0.53730741,2107.4,2106.8,0.5869253]
[1770584823985,0.53730741,2107.6,2106.8,0.5869253]
[1770584825574,2.83988106,2107.5,2106.8,0.5869253]
[1770584825779,3.37718847,2107.5,2106.8,0.5869253]
[1770584826885,3.37718847,2107.7,2106.9,0.58265468]
[1770584827675,0.53730741,2107.6,2106.9,0.58265468]
[1770584828082,2.83988106,2107.7,2107.1,0.58265468]
[1770584828480,0.53730741,2107.6,2107.0,0.23746]
[1770584828683,0.53730741,2107.6,2107.0,0.82011468]
[1770584828878,0.53730741,2107.6,2107.1,0.58265468]
[1770584830684,0.53730741,2107.5,2106.9,0.58265468]
[1770584831091,0.53730741,2107.4,2106.9,0.58265468]
[1770584834091,3.37718847,2107.6,2106.9,0.58265468]
[1770584834388,0.53730741,2107.6,2106.9,0.58265468]
[1770584835392,3.37718847,2107.6,2106.9,0.58265468]
[1770584835592,0.54667602,2107.5,2106.9,0.58265468]
[1770584837892,0.54667602,2107.4,2106.8,0.78728769]
[1770584838394,0.54667602,2107.4,2106.9,0.54553707]
[1770584843392,0.54667602,2107.4,2106.8,0.24175062]
[1770584843599,0.54667602,2107.1,2106.5,0.54553707]
[1770584843790,0.54667602,2107.0,2106.5,0.54553707]
[1770584844392,0.54667602,2106.9,2106.4,0.36015479]
[1770584844589,0.54667602,2106.9,2106.3,0.54553707]
[1770584844792,0.54667602,2106.9,2106.3,0.55141851]
[1770584845697,0.54667602,2106.9,2105.9,24.67727867]
[1770584845698,0.54667602,2106.6,2105.9,0.54553707]
[1770584845891,0.54667602,2106.6,2105.9,0.90681537]
[1770584846200,0.54667602,2106.4,2106.0,0.54553707]
[1770584846794,0.55269838,2106.4,2106.0,0.54948248]
[1770584849400,0.00602236,2106.4,2106.0,0.54948248]
[1770584849596,28.73952617,2107.0,2106.3,0.23753]
[1770584849797,0.58909198,2107.3,2106.5,0.23751]
[1770584850191,0.58909198,2107.3,2106.5,3.07106382]
[1770584850591,0.59483133,2107.3,2106.5,3.07106382]
[1770584850803,0.59483133,2107.3,2106.6,0.00408405]
[1770584852797,0.59483133,2107.3,2106.4,2.83355382]
[1770584853102,0.59483133,2107.3,2106.2,2.84008007]
[1770584853302,0.59483133,2107.3,2106.3,0.00652625]
[1770584854098,0.59483133,2107.3,2106.3,2.84008007]
[1770584854302,0.59483133,2107.3,2106.4,0.00652625]
[1770584856006,0.59483133,2107.3,2106.5,0.00462109]
[1770584856305,0.59483133,2107.3,2106.6,0.00462109]
[1770584859608,0.59483133,2107.3,2106.7,0.005432]
[1770584860708,0.59483133,2107.3,2106.8,0.005432]
[1770584860910,0.59483133,2107.3,2106.3,2.83958194]
[1770584861105,0.59483133,2107.3,2106.4,0.00602812]
[1770584862706,0.59483133,2107.3,2106.6,0.00602812]
[1770584863500,0.59483133,2107.3,2106.6,0.24353812]
[1770584865707,0.59483133,2107.3,2106.3,2.24623885]
[1770584865708,4.75773935,2107.3,2106.3,2.24623885]
[1770584865902,4.75773935,2107.3,2106.1,0.55219181]
[1770584865903,0.56872981,2107.1,2106.1,0.55219181]
[1770584869108,0.56872981,2107.1,2106.2,0.55219181]
[1770584872314,0.56872981,2107.1,2106.4,0.55219181]
[1770584872514,0.56872981,2107.1,2106.3,0.23753]
[1770584873912,0.00573935,2107.3,2106.6,0.23751]
[1770584874120,0.56872981,2107.2,2106.7,0.55219181]
[1770584880427,0.56872981,2107.2,2106.2,0.55219181]
[1770584880621,0.56872981,2107.1,2106.0,0.55613722]
[1770584880818,0.56872981,2107.1,2106.1,0.55219181]
[1770584883831,0.56872981,2107.0,2106.1,0.55219181]
[1770584885027,0.56872981,2107.2,2106.4,0.55219181]
[1770584885729,0.56872981,2107.2,2106.5,0.55219181]
[1770584890139,0.56872981,2107.2,2106.6,0.55219181]
[1770584894538,0.56872981,2107.2,2106.7,0.55219181]
[1770584904352,0.56872981,2107.2,2106.6,0.2375]
[1770584904661,0.56872981,2107.2,2106.6,0.76918066]
[1770584906561,0.56872981,2107.2,2106.7,0.53168066]
[1770584911158,0.56872981,2107.2,2106.7,0.76917066]
[1770584911460,0.54295238,2107.3,2106.8,0.53168066]
[1770584916257,0.53721303,2107.0,2106.3,4.27684847]
[1770584917461,0.53721303,2107.0,2106.4,0.53168066]
[1770584918562,0.53721303,2107.0,2106.3,0.53168066]
[1770584918761,0.53721303,2106.9,2106.3,0.53168066]
[1770584927968,0.53721303,2106.9,2106.2,0.23755]
[1770584939084,1.1655014,2107.3,2106.3,9.07228775]
[1770584939286,0.73955251,2107.3,2106.5,2.84275051]
[1770584939485,0.73955251,2107.3,2106.4,0.23753]
[1770584940280,0.73955251,2107.1,2106.1,2.84275051]
[1770584940580,0.73955251,2107.1,2106.0,2.84669592]
[1770584940981,0.73955251,2107.1,2106.0,3.08426592]
[1770584942181,0.73955251,2107.1,2106.1,2.84275051]
[1770584942587,0.73955251,2107.1,2106.1,3.08031051]
[1770584945393,0.73955251,2107.1,2106.2,2.84275051]
[1770584945594,0.73955251,2107.1,2106.2,3.08030051]
[1770584945788,0.73955251,2107.1,2106.3,0.23753]
[1770584945988,0.73955251,2107.1,2106.3,3.08028051]
[1770584949195,0.73955251,2107.1,2106.4,2.84275051]
[1770584949591,0.73955251,2107.1,2106.5,2.84275051]
[1770584950200,0.54480765,2107.3,2106.9,0.27286257]
[1770584953498,0.54480765,2107.3,2106.8,0.23748]
[1770584953999,0.54480765,2107.3,2106.8,0.50571077]
[1770584958402,0.56848552,2107.2,2106.8,0.23748]
[1770584962604,1e-08,2107.4,2106.9,0.2698025]
[1770584962905,1.80322695,2107.7,2106.9,0.2698025]
[1770584963810,1.80718927,2107.7,2106.9,0.2698025]
[1770584972013,1.80718927,2107.7,2107.0,0.55911578]
[1770584974506,1.80322695,2107.5,2106.9,3.08022051]
[1770584974708,1.80718927,2107.7,2106.9,0.23747]
[1770584974709,1.80322695,2107.3,2106.9,0.23747]
[1770584975217,1.80322695,2107.5,2106.9,0.23747]
[1770584975919,0.56848552,2107.4,2106.9,0.23747]
[1770584980010,0.56848552,2107.4,2106.9,0.79658578]
[1770584980216,0.56848552,2107.6,2107.2,0.55911578]
[1770584982218,0.57244784,2107.7,2107.2,0.55911578]
[1770584989745,0.57244784,2107.7,2107.0,3.63031775]
[1770584990025,0.57244784,2107.7,2107.1,0.55010724]
[1770584991228,0.57244784,2107.7,2107.2,0.55010724]
[1770584994831,0.58787576,2107.7,2107.2,0.55010724]
[1770584995927,0.58391344,2107.4,2107.0,3.08021051]
[1770584996729,0.58391344,2107.4,2107.0,3.63031775]
[1770585000534,0.58391344,2107.4,2107.0,0.78756724]
[1770585001341,0.58391344,2107.4,2107.0,3.63031775]
[1770585003541,0.58391344,2107.4,2107.0,3.08021051]
[1770585003937,0.58391344,2107.4,2107.0,3.63031775]
[1770585006542,0.58391344,2107.1,2106.6,9.89412714]
[1770585006741,0.58391344,2107.1,2106.5,0.78761724]
[1770585007140,0.58391344,2107.1,2106.4,0.55010724]
[1770585013955,0.58391344,2106.7,2106.1,0.78766724]
[1770585014142,0.58391344,2106.7,2106.2,0.55010724]
[1770585015851,0.58391344,2106.7,2106.1,0.23756]
[1770585015852,0.54052662,2107.0,2106.4,0.5813097]
[1770585017653,0.54052662,2107.2,2106.4,0.5813097]
[1770585030459,0.54052662,2107.2,2106.5,0.5813097]
[1770585030665,3.37916496,2107.5,2106.7,0.5813097]
[1770585030958,0.54052662,2107.5,2106.8,0.5813097]
[1770585031163,0.54052662,2107.5,2106.7,0.23749]
[1770585031965,0.54052662,2107.4,2106.4,0.5813097]
[1770585032160,0.54052662,2107.1,2106.2,0.8188597]
[1770585032369,0.54052662,2107.0,2106.2,0.8188597]
[1770585032661,0.54052662,2107.0,2106.2,0.23755]
[1770585032868,3.37916496,2106.8,2106.0,0.00394541]
[1770585033059,0.54052662,2106.7,2106.0,0.00394541]
[1770585034866,0.54052662,2106.4,2106.0,0.00394541]
[1770585035264,0.54052662,2106.4,2106.0,0.58525511]
[1770585035771,0.54052662,2106.6,2106.0,0.58525511]
[1770585039874,0.54052662,2106.6,2106.0,0.00394541]
[1770585043677,0.54052662,2106.7,2106.0,0.58525511]
[1770585046875,0.54052662,2106.7,2106.0,0.00394541]
[1770585048284,0.58763815,2106.6,2105.6,0.58083312]
[1770585048487,0.58763815,2106.5,2105.6,0.58083312]
[1770585049280,0.58763815,2106.5,2105.6,0.58517614]
[1770585049480,0.58763815,2106.5,2105.9,0.23758]
[1770585050082,0.58763815,2106.5,2105.9,0.81841312]
[1770585061086,3.42627649,2106.5,2105.9,0.81841312]
[1770585061291,0.58763815,2106.4,2105.9,0.81841312]
[1770585062187,0.58763815,2106.3,2105.9,0.81841312]
[1770585062989,3.42627649,2106.4,2106.0,0.58083312]
[1770585063192,0.58763815,2107.0,2106.4,0.44722674]
[1770585063998,0.58763815,2107.2,2106.4,0.44722674]
[1770585064495,0.58763815,2107.4,2106.7,0.44722674]
[1770585064894,0.58763815,2107.4,2106.6,0.68016158]
[1770585065094,0.58763815,2107.4,2106.2,4.27684847]
[1770585065297,0.58763815,2107.4,2106.3,0.44266158]
[1770585065794,0.58763815,2107.4,2106.4,0.44266158]
[1770585071299,0.58763815,2107.4,2106.4,0.68019158]
[1770585071502,0.58763815,2107.4,2106.5,0.44759785]
[1770585073204,0.58763815,2107.5,2106.8,0.44580824]
[1770585077400,0.57191641,2107.2,2106.5,0.44522655]
[1770585089111,0.57191641,2107.4,2106.6,0.44300409]
[1770585089416,10.73301774,2107.6,2107.1,0.44300409]
[1770585089614,0.57191641,2107.5,2107.1,0.0037251]
[1770585090215,0.57191641,2107.5,2107.1,0.44672919]
[1770585091415,0.57191641,2107.5,2107.1,0.0037251]
[1770585092015,0.57191641,2107.5,2107.1,0.44406224]
[1770585093317,0.57191641,2107.5,2107.1,0.0037251]
[1770585097221,2.37549909,2107.5,2107.1,0.0037251]
[1770585097519,0.57191641,2107.4,2107.1,0.0037251]
[1770585099219,10.73301774,2107.6,2107.1,0.44182651]
[1770585099414,0.57191641,2107.5,2107.1,0.0037251]
[1770585100215,0.57191641,2107.5,2107.1,0.44182651]
[1770585111235,10.69138948,2107.6,2107.1,0.44182651]
[1770585111435,0.53028815,2107.5,2107.1,0.44182651]
[1770585113832,0.53028815,2107.6,2107.1,0.44182651]
[1770585115126,0.53028815,2108.0,2107.4,0.44128657]
[1770585115934,0.53028815,2108.0,2107.5,0.44128657]
[1770585116334,0.53534839,2108.0,2107.5,0.44128657]
[1770585119633,0.53534839,2108.0,2107.4,3.28013946]
[1770585120338,0.53534839,2108.0,2107.4,2.83942882]
[1770585120540,0.53534839,2108.0,2107.3,3.07685882]
[1770585120838,0.53534839,2108.0,2107.3,3.51756946]
[1770585121236,0.53534839,2108.0,2107.4,0.44369468]
[1770585125739,33.02587083,2108.3,2107.5,0.44184329]
[1770585125944,0.53028815,2108.2,2107.6,0.56769909]
[1770585126942,0.53378312,2108.2,2107.6,0.56769909]
[1770585127841,0.53028815,2107.9,2107.5,0.2374]
[1770585128238,0.53028815,2107.9,2107.5,0.80509909]
[1770585128437,0.00349497,2108.2,2107.8,0.56769909]
[1770585128650,0.53028815,2108.4,2107.8,0.56769909]
[1770585129640,0.53432141,2108.4,2107.8,0.56769909]
[1770585132449,0.53028815,2108.2,2107.7,0.80507909]
[1770585132848,0.53028815,2108.2,2107.8,0.56769909]
[1770585134247,0.00403326,2108.4,2107.8,0.56769909]
[1770585134453,0.53028815,2108.5,2107.9,0.56769909]
[1770585134647,0.13312709,2108.5,2107.9,0.56769909]
[1770585135453,0.13878562,2108.5,2107.9,0.56769909]
[1770585135650,0.00565853,2108.5,2108.0,0.5537992]
[1770585136953,0.5627943,2108.5,2108.0,0.5537992]
[1770585137154,0.00565853,2108.5,2108.0,0.5537992]
[1770585137452,0.5627943,2108.5,2108.0,0.5537992]
[1770585138556,0.5627943,2108.5,2108.1,0.56314042]
[1770585138752,0.00565853,2108.5,2108.1,0.56314042]
[1770585139149,0.55713577,2108.9,2108.3,0.56314042]
[1770585139348,4.64229842,2109.2,2108.3,0.56314042]
[1770585139349,0.55713577,2109.1,2108.3,0.56314042]
[1770585140055,0.56164933,2109.1,2108.3,0.56314042]
[1770585141149,0.56164933,2109.1,2108.4,0.56314042]
[1770585141356,0.55713577,2109.4,2108.6,0.56314042]
[1770585142452,0.56064093,2109.4,2108.7,0.56314042]
[1770585144262,0.56064093,2109.4,2108.8,0.56314042]
[1770585144762,0.00350516,2109.4,2108.8,0.56314042]
[1770585145062,0.56064093,2109.4,2108.8,0.56314042]
[1770585146061,0.00350516,2109.4,2108.8,0.56314042]
[1770585146556,0.56064093,2109.4,2108.7,0.88057413]
[1770585146757,0.56064093,2109.4,2108.6,0.24187667]
[1770585147057,0.56064093,2109.4,2108.6,0.80501709]
[1770585147563,0.56064093,2109.4,2108.7,0.56314042]
[1770585147952,0.56064093,2109.4,2108.6,0.24187667]
[1770585148759,0.55713577,2109.2,2108.6,0.00460667]
[1770585148962,0.55713577,2109.2,2108.6,0.56774709]
[1770585149257,0.55713577,2109.2,2108.6,0.00460667]
[1770585149961,0.55713577,2109.2,2108.6,0.56774709]
[1770585154661,0.56064093,2109.4,2108.6,0.56774709]
[1770585155866,0.55713577,2109.2,2108.6,0.00460667]
[1770585156567,0.55713577,2109.2,2108.6,0.56774709]
[1770585157163,0.56064093,2109.4,2108.6,0.56774709]
[1770585157359,0.00350516,2109.4,2108.7,0.56314042]
[1770585157865,0.56064093,2109.4,2108.7,0.56314042]
[1770585159666,0.00350516,2109.4,2108.7,0.56314042]
[1770585160060,0.56064093,2109.4,2108.7,0.56314042]
[1770585168677,0.56064093,2109.4,2108.8,0.53178103]
[1770585170681,0.56064093,2109.4,2108.9,0.53178103]
[1770585172882,0.56064093,2109.4,2108.8,0.76904103]
[1770585173179,0.56064093,2109.4,2108.7,2.84079632]
[1770585173381,0.37299566,2109.1,2108.6,0.5363877]
[1770585174285,0.37299566,2109.0,2108.6,0.5363877]
[1770585174487,3.21446532,2109.1,2108.6,0.5363877]
[1770585174684,0.37299566,2109.0,2108.6,0.5363877]
[1770585176174,0.37053739,2109.1,2108.6,0.5363877]
[1770585182489,2.84146966,2109.2,2108.6,0.5363877]
[1770585183093,2.84497482,2109.4,2108.6,0.5363877]